bitfinex/quotes_SOLUSD_20240625
["timestamp","ask_amount","ask_price","bid_price","bid_amount"]
[1719314673582,16.0217,138.28,138.27,0.74971661]
[1719314674875,7.2317,138.28,138.27,0.74971661]
[1719314675069,16.0217,138.28,138.27,0.74971661]
[1719314680384,7.2313,138.29,138.27,0.74971661]
[1719314680885,8.79,138.28,138.27,0.74971661]
[1719314681685,35.16,138.32,138.27,0.74971661]
[1719314681888,8.79,138.28,138.27,0.74971661]
[1719314682568,8.79,138.28,138.27,7.98191661]
[1719314682768,8.79,138.28,138.27,0.74971661]
[1719314684787,35.16,138.32,138.27,0.74971661]
[1719314685188,8.79,138.28,138.27,0.74971661]
[1719314686869,7.2302,138.31,138.27,7.98191661]
[1719314687068,15.3364,138.33,138.28,7.2316]
[1719314687365,15.3364,138.33,138.27,26.06171661]
[1719314687366,8.79,138.29,138.27,26.06171661]
[1719314687585,8.79,138.28,138.27,26.06171661]
[1719314687976,7.2301,138.31,138.27,26.06171661]
[1719314688179,8.79,138.28,138.27,26.06171661]
[1719314688573,7.2295,138.33,138.29,7.2309]
[1719314688791,8.79,138.31,138.29,7.2309]
[1719314688996,8.79,138.31,138.29,25.3087]
[1719314689789,8.79,138.31,138.3,7.2306]
[1719314689968,8.79,138.31,138.29,25.3087]
[1719314690173,8.79,138.3,138.29,18.0778]
[1719314690492,8.79,138.3,138.27,2.81651741]
[1719314690685,7.2299,138.32,138.27,2.81651741]
[1719314690686,8.79,138.29,138.27,2.81651741]
[1719314691707,8.79,138.3,138.27,2.81651741]
[1719314691881,8.79,138.3,138.28,7.2313]
[1719314692082,8.79,138.3,138.29,7.2311]
[1719314692291,18.39947067,138.34,138.3,7.2306]
[1719314692493,11.17077067,138.34,138.3,25.307]
[1719314692688,8.79,138.31,138.3,25.3068]
[1719314693586,8.79,138.31,138.3,18.0764]
[1719314693782,8.79,138.31,138.28,7.2314]
[1719314693983,8.79,138.29,138.28,7.2314]
[1719314694593,8.79,138.29,138.27,28.12821741]
[1719314694797,8.79,138.29,138.28,7.2317]
[1719314695000,7.2296,138.32,138.28,7.2317]
[1719314695210,8.79,138.29,138.28,7.2317]
[1719314697108,8.79,138.3,138.29,7.2309]
[1719314697283,8.79,138.3,138.28,7.2316]
[1719314697486,8.79,138.29,138.27,28.12821741]
[1719314697681,8.79,138.29,138.28,7.2317]
[1719314698078,8.79,138.29,138.27,20.89621741]
[1719314698375,8.79,138.29,138.28,7.2317]
[1719314699379,7.2292,138.33,138.29,7.2309]
[1719314699587,8.79,138.3,138.29,7.2309]
[1719314700087,11.17077067,138.34,138.27,2.81651741]
[1719314700291,15.3835,138.37,138.28,47.35255134]
[1719314700599,8.79,138.32,138.31,25.3051]
[1719314701381,7.2282,138.35,138.31,25.3051]
[1719314701788,8.79,138.32,138.31,25.3051]
[1719314702487,13.5874,138.36,138.32,7.2295]
[1719314702708,8.79,138.33,138.32,7.2295]
[1719314702903,8.79,138.33,138.31,25.305]
[1719314703211,8.79,138.32,138.3,7.2304]
[1719314703383,8.79,138.31,138.3,7.2304]
[1719314703780,7.2281,138.35,138.31,7.23]
[1719314704000,8.79,138.32,138.31,7.23]
[1719314704396,7.2281,138.35,138.31,7.23]
[1719314705905,8.79,138.32,138.31,7.23]
[1719314706400,8.79,138.32,138.3,25.3065]
[1719314706611,8.79,138.31,138.3,25.3065]
[1719314706902,8.79,138.31,138.29,2.06650189]
[1719314707108,8.79,138.3,138.29,2.06650189]
[1719314708994,8.79,138.3,138.29,9.29760189]
[1719314709400,8.79,138.3,138.29,2.06650189]
[1719314709593,8.79,138.3,138.29,9.29760189]
[1719314710408,8.79,138.3,138.29,2.06650189]
[1719314710719,16.0206,138.3,138.29,2.06650189]
[1719314714190,7.2317,138.28,138.27,0.74971661]
[1719314714392,36.0217,138.28,138.27,0.74971661]
[1719314716293,62.47377067,138.28,138.27,0.74971661]
[1719314716488,62.47377067,138.28,138.26,0.61201869]
[1719314716489,18.40297067,138.27,138.26,0.61201869]
[1719314716691,35.98297067,138.27,138.26,0.61201869]
[1719314716917,7.2332,138.25,138.24,1.13210778]
[1719314717214,51.1832,138.25,138.24,1.13210778]
[1719314717600,15.2813,138.28,138.22,0.77999266]
[1719314718003,8.79,138.23,138.22,0.77999266]
[1719314720320,16.0243,138.23,138.22,0.77999266]
[1719314720824,122.3537,138.23,138.22,0.77999266]
[1719314721000,7.2348,138.22,138.21,0.8406748]
[1719314721207,7.2358,138.2,138.17,0.69203684]
[1719314721514,24.8158,138.2,138.17,0.69203684]
[1719314723417,7.2369,138.18,138.17,0.69203684]
[1719314723605,51.1869,138.18,138.17,0.69203684]
[1719314724521,7.2379,138.16,138.14,0.81866027]
[1719314724696,16.0279,138.16,138.14,0.81866027]
[1719314725419,8.79,138.16,138.14,0.81866027]
[1719314725820,16.0279,138.16,138.14,0.81866027]
[1719314726213,7.2379,138.16,138.14,0.81866027]
[1719314726724,16.0279,138.16,138.14,0.81866027]
[1719314727426,8.79,138.16,138.14,0.81866027]
[1719314727796,16.0279,138.16,138.14,0.81866027]
[1719314728002,7.2379,138.16,138.14,0.81866027]
[1719314728203,16.0279,138.16,138.14,0.81866027]
[1719314730219,36.1789,138.21,138.14,0.81866027]
[1719314730220,22.7295,138.27,138.21,7.2349]
[1719314730405,8.79,138.23,138.2,18.0893]
[1719314730608,22.7295,138.27,138.2,18.0893]
[1719314730824,8.79,138.24,138.22,7.2347]
[1719314732244,8.79,138.24,138.21,7.2351]
[1719314732536,8.79,138.24,138.22,7.2345]
[1719314732744,7.2323,138.27,138.23,7.2342]
[1719314732942,7.2318,138.28,138.23,7.2342]
[1719314733126,7.2318,138.28,138.22,18.0866]
[1719314733306,7.2318,138.28,138.23,7.2342]
[1719314734627,100.0,138.29,138.22,18.0866]
[1719314735031,7.2324,138.27,138.22,25.3213]
[1719314735516,7.2327,138.26,138.22,18.0866]
[1719314735824,7.2323,138.27,138.22,25.3213]
[1719314736424,7.2323,138.27,138.23,7.2341]
[1719314737137,50.6365,138.3,138.2,36.1794]
[1719314737138,6.1296,138.3,138.2,36.1794]
[1719314737429,7.2296,138.32,138.28,7.2316]
[1719314737730,7.2302,138.31,138.27,18.0802]
[1719314737931,100.0,138.31,138.22,22.4455]
[1719314738122,48.9964,138.34,138.28,7.2316]
[1719314738319,7.2294,138.33,138.28,7.2316]
[1719314739136,7.2302,138.31,138.27,7.2321]
[1719314739530,7.2296,138.32,138.27,7.2321]
[1719314739736,7.2301,138.31,138.27,7.2321]
[1719314739921,7.2306,138.3,138.26,18.0815]
[1719314740520,100.0,138.31,138.23,18.0851]
[1719314740811,126.43,138.31,138.26,7.2324]
[1719314741015,7.231,138.3,138.25,25.316]
[1719314741229,7.2314,138.29,138.25,18.0829]
[1719314742057,7.2317,138.28,138.22,40.5322]
[1719314742747,7.2313,138.29,138.24,7.2334]
[1719314743526,107.2313,138.29,138.24,7.2334]
[1719314743926,7.2318,138.28,138.24,7.2334]
[1719314744127,126.43,138.31,138.25,7.2331]
[1719314744333,0.17,138.3,138.25,7.2331]
[1719314745328,133.6606,138.31,138.26,7.2326]
[1719314745629,7.2307,138.3,138.26,7.2326]
[1719314746030,33.6602,138.31,138.26,7.2326]
[1719314746240,107.2318,138.28,138.23,7.2339]
[1719314746451,7.2318,138.28,138.23,7.2339]
[1719314746948,22.4881,138.27,138.21,25.3221]
[1719314747142,7.2329,138.26,138.22,7.2348]
[1719314747346,7.2333,138.25,138.21,18.0872]
[1719314747659,7.2332,138.25,138.21,25.322]
[1719314749351,100.0,138.26,138.2,7.2358]
[1719314749352,7.2338,138.24,138.2,7.2358]
[1719314749550,100.0,138.26,138.15,22.58258705]
[1719314749850,100.0,138.26,138.21,7.235]
[1719314749851,7.2335,138.25,138.21,7.235]
[1719314751241,7.2328,138.26,138.22,7.2348]
[1719314751827,7.2334,138.25,138.21,7.2351]
[1719314752334,7.2315,138.29,138.21,1.44685003]
[1719314752541,7.2315,138.29,138.25,7.2331]
[1719314752738,16.0668,138.3,138.26,18.0815]
[1719314753047,7.2313,138.29,138.24,7.2333]
[1719314753354,16.0668,138.3,138.25,18.0826]
[1719314753647,23.2975,138.3,138.25,18.0826]
[1719314753948,7.2317,138.28,138.22,54.2575]
[1719314754555,7.2317,138.28,138.24,7.2337]
[1719314754743,7.2317,138.28,138.23,7.2341]
[1719314755353,7.2317,138.28,138.24,7.2337]
[1719314756261,7.2312,138.29,138.25,7.2332]
[1719314756440,7.2312,138.29,138.24,18.0842]
[1719314756441,23.2976,138.3,138.26,7.2326]
[1719314756633,23.2976,138.3,138.25,7.233]
[1719314757048,116.0668,138.3,138.21,22.0196]
[1719314757253,7.2318,138.28,138.21,22.0196]
[1719314757559,7.2318,138.28,138.24,7.2334]
[1719314759459,100.0,138.28,138.23,18.0853]
[1719314759754,100.0,138.28,138.16,62.618]
[1719314759755,7.2342,138.24,138.2,25.3246]
[1719314760154,13.5404,138.25,138.2,25.3246]
[1719314760341,7.2338,138.24,138.2,18.0888]
[1719314761158,7.2343,138.23,138.19,7.2362]
[1719314761539,7.2339,138.24,138.2,7.2357]
[1719314761845,7.2343,138.23,138.19,18.0906]
[1719314762353,115.1743,138.24,138.16,18.0943]
[1719314762534,7.2344,138.23,138.18,25.3286]
[1719314762738,22.4083,138.24,138.18,18.0922]
[1719314762940,22.4083,138.24,138.2,7.2358]
[1719314763362,22.4083,138.24,138.2,7.2357]
[1719314763569,15.1743,138.24,138.21,7.2353]
[1719314763765,15.1743,138.24,138.2,25.3249]
[1719314764056,22.4081,138.24,138.2,25.3249]
[1719314764560,15.1743,138.24,138.2,25.3249]
[1719314765138,22.4081,138.24,138.2,25.3249]
[1719314765458,7.2332,138.26,138.21,7.2352]
[1719314765645,7.2336,138.25,138.21,7.2352]
[1719314766159,7.2336,138.25,138.2,25.3252]
[1719314766341,7.2347,138.23,138.19,7.2362]
[1719314767740,7.2348,138.22,138.18,7.2368]
[1719314767947,100.0,138.27,138.16,36.1884]
[1719314768155,100.0,138.27,138.17,0.34]
[1719314768352,100.0,138.27,138.17,2.03696914]
[1719314768542,141.9233,138.28,138.2,25.3251]
[1719314768743,20.0,138.27,138.2,25.3251]
[1719314768953,100.0,138.26,138.2,18.0894]
[1719314769546,38.0808,138.27,138.2,25.3252]
[1719314769746,7.2341,138.24,138.2,18.0894]
[1719314770242,7.2338,138.24,138.2,18.0894]
[1719314770658,7.2344,138.23,138.17,18.2624]
[1719314770864,7.2344,138.23,138.18,7.2365]
[1719314771545,118.0819,138.26,138.18,7.2367]
[1719314771759,7.2327,138.26,138.22,7.2347]
[1719314771964,15.4933,138.28,138.23,7.2341]
[1719314772267,7.2322,138.27,138.22,18.0865]
[1719314772473,7.2328,138.26,138.22,25.3211]
[1719314772780,7.2333,138.25,138.2,22.267]
[1719314772958,133.5729,138.28,138.2,15.0316]
[1719314773275,7.2334,138.25,138.2,7.2358]
[1719314773864,7.2339,138.24,138.2,7.2358]
[1719314774747,7.2339,138.24,138.19,25.3262]
[1719314774943,7.2339,138.24,138.19,25.3263]
[1719314775139,100.0,138.26,138.19,25.3263]
[1719314775140,7.2344,138.23,138.19,25.3263]
[1719314775339,7.2353,138.22,138.16,39.2675]
[1719314776272,7.2356,138.21,138.16,39.2675]
[1719314776777,7.2345,138.23,138.18,7.2365]
[1719314778759,7.2348,138.22,138.18,7.2365]
[1719314778953,7.2354,138.21,138.16,33.1257]
[1719314779358,7.235,138.22,138.17,7.2371]
[1719314780172,7.2356,138.21,138.16,25.332]
[1719314780564,7.2356,138.21,138.17,7.2373]
[1719314781479,7.2349,138.22,138.18,7.2369]
[1719314781688,29.9382,138.23,138.18,25.3292]
[1719314781998,29.9382,138.23,138.19,7.2362]
[1719314782272,26.43,138.24,138.18,18.0923]
[1719314782479,26.43,138.24,138.19,7.2361]
[1719314782660,7.2341,138.24,138.19,7.2361]
[1719314783291,7.2343,138.23,138.19,7.2361]
[1719314784299,7.2348,138.22,138.18,25.3291]
[1719314784662,7.235,138.22,138.18,7.2367]
[1719314786589,7.2345,138.23,138.19,7.2362]
[1719314787094,7.2339,138.24,138.2,7.2356]
[1719314787762,7.2343,138.23,138.19,25.3271]
[1719314788694,7.234,138.24,138.19,25.3271]
[1719314790474,7.2347,138.23,138.19,18.0909]
[1719314790676,100.0,138.25,138.19,18.0909]
[1719314790677,7.235,138.22,138.19,18.0909]
[1719314790880,7.235,138.22,138.18,7.2367]
[1719314791479,7.2354,138.21,138.17,23.486]
[1719314792201,7.235,138.22,138.17,23.486]
[1719314792502,7.235,138.22,138.18,7.2369]
[1719314792704,8.82,138.2,138.18,7.2369]
[1719314793602,7.235,138.22,138.18,7.2369]
[1719314793792,8.82,138.2,138.18,25.3288]
[1719314794178,8.82,138.2,138.19,7.2364]
[1719314794372,8.82,138.21,138.18,25.329]
[1719314794576,7.2353,138.21,138.18,18.0923]
[1719314794877,7.235,138.22,138.18,25.3291]
[1719314795295,7.235,138.22,138.18,18.0923]
[1719314795492,100.0,138.23,138.16,7.2377]
[1719314795493,7.2353,138.21,138.16,7.2377]
[1719314795694,7.2353,138.21,138.17,7.2373]
[1719314796111,7.2349,138.22,138.18,7.2368]
[1719314797101,100.0,138.21,138.15,0.84258705]
[1719314797395,7.2373,138.18,138.15,0.84258705]
[1719314797588,7.2378,138.17,138.15,0.84258705]
[1719314798989,7.2371,138.18,138.15,0.84258705]
[1719314800183,7.2376,138.17,138.15,0.84258705]
[1719314803278,7.2379,138.16,138.15,0.84258705]
[1719314803478,123.22,138.16,138.15,0.84258705]
[1719314803684,151.58004492,138.16,138.15,0.84258705]
[1719314803984,151.41004492,138.16,138.15,0.84258705]
[1719314806006,151.75004492,138.16,138.15,0.84258705]
[1719314806585,151.41004492,138.16,138.15,0.84258705]
[1719314807000,151.75004492,138.16,138.15,8.705e-05]
[1719314808305,151.75004492,138.16,138.14,0.81866027]
[1719314808306,43.431,138.15,138.14,4.732e-05]
[1719314808504,50.65584492,138.15,138.14,4.732e-05]
[1719314808802,70.65584492,138.15,138.14,4.732e-05]
[1719314809594,107.2395,138.13,138.12,0.58002164]
[1719314809896,117.67464492,138.13,138.12,0.58002164]
[1719314810291,117.67464492,138.13,138.1,0.86527585]
[1719314810292,125.3421,138.11,138.1,0.86527585]
[1719314810606,182.22724492,138.11,138.1,0.86527585]
[1719314810782,182.39724492,138.11,138.1,0.86527585]
[1719314811798,182.05724492,138.11,138.1,0.86527585]
[1719314812314,182.22724492,138.11,138.1,0.86527585]
[1719314812504,163.95574492,138.11,138.1,0.86527585]
[1719314812814,7.2406,138.11,138.1,0.86527585]
[1719314818319,7.2402,138.12,138.1,0.86527585]
[1719314818493,7.2406,138.11,138.1,0.86527585]
[1719314818694,10.26514492,138.13,138.1,0.86527585]
[1719314818695,7.2402,138.12,138.1,0.86527585]
[1719314818915,7.2406,138.11,138.1,0.86527585]
[1719314819312,7.2401,138.12,138.1,0.86527585]
[1719314820822,7.2406,138.11,138.1,0.86527585]
[1719314821901,10.26514492,138.13,138.1,0.86527585]
[1719314822107,17.50464492,138.13,138.1,0.86527585]
[1719314822401,2.902081,138.18,138.11,15.0713]
[1719314822604,10.26514492,138.18,138.12,6.1492]
[1719314822808,100.0,138.22,138.14,7.2385]
[1719314822998,100.0,138.22,138.15,7.2383]
[1719314822999,7.2363,138.2,138.15,7.2383]
[1719314823337,17.50144492,138.2,138.16,7.2379]
[1719314823697,10.26514492,138.2,138.16,7.2379]
[1719314823915,10.26514492,138.2,138.13,0.34]
[1719314824107,7.238,138.16,138.13,0.17]
[1719314824320,7.238,138.16,138.12,31.4883]
[1719314824619,7.2376,138.17,138.12,24.2484]
[1719314824827,7.2376,138.17,138.13,0.17]
[1719314825211,7.2371,138.18,138.13,0.17]
[1719314825529,7.2365,138.19,138.14,25.3361]
[1719314825702,7.237,138.18,138.14,25.3361]
[1719314825904,7.237,138.18,138.14,25.3362]
[1719314826816,7.238,138.16,138.12,6.1492]
[1719314827020,7.238,138.16,138.12,13.3892]
[1719314827320,7.238,138.16,138.12,6.1492]
[1719314827504,7.2396,138.13,138.09,0.83386496]
[1719314827699,7.2401,138.12,138.09,0.83386496]
[1719314827904,7.2397,138.13,138.09,0.83386496]
[1719314828306,100.0,138.14,138.09,0.83386496]
[1719314828513,7.24,138.13,138.09,0.83386496]
[1719314828701,7.2401,138.12,138.09,0.83386496]
[1719314829806,7.2396,138.13,138.09,0.83386496]
[1719314830000,7.2396,138.13,138.09,8.07536496]
[1719314830414,7.2401,138.12,138.09,0.83386496]
[1719314830617,7.2385,138.15,138.11,7.2401]
[1719314830808,7.2381,138.16,138.11,7.2401]
[1719314831004,10.26514492,138.18,138.12,7.2399]
[1719314831211,7.2376,138.17,138.12,25.3393]
[1719314831611,7.2376,138.17,138.13,7.2395]
[1719314831809,7.2378,138.17,138.12,18.0994]
[1719314832105,10.26514492,138.18,138.13,7.2394]
[1719314832312,10.26514492,138.18,138.12,18.0994]
[1719314832518,7.2383,138.16,138.12,18.0994]
[1719314833227,7.2383,138.16,138.12,25.3393]
[1719314833606,7.2376,138.17,138.12,25.3393]
[1719314833815,7.2381,138.16,138.12,18.0994]
[1719314834627,10.26514492,138.18,138.1,0.86527585]
[1719314834803,26.45,138.16,138.1,0.86527585]
[1719314835127,7.2401,138.12,138.1,0.86527585]
[1719314835700,7.2402,138.12,138.1,0.86527585]
[1719314835912,7.2406,138.11,138.1,0.86527585]
[1719314836907,7.24,138.12,138.1,0.86527585]
[1719314838637,7.2397,138.13,138.1,0.86527585]
[1719314839005,7.2402,138.12,138.1,0.86527585]
[1719314839211,7.2406,138.11,138.1,0.86527585]
[1719314840507,26.45,138.13,138.1,0.86527585]
[1719314840713,7.2406,138.11,138.1,0.86527585]
[1719314841527,7.2402,138.12,138.1,0.86527585]
[1719314841735,16.59844492,138.16,138.1,0.86527585]
[1719314841944,7.2389,138.15,138.1,8.10627585]
[1719314842120,7.2396,138.13,138.1,0.86527585]
[1719314843530,7.2401,138.12,138.1,0.86527585]
[1719314843947,7.2405,138.12,138.1,0.86527585]
[1719314844120,7.2406,138.11,138.1,0.86527585]
[1719314851338,17.50574492,138.11,138.1,0.86527585]
[1719314851541,117.50574492,138.11,138.1,0.86527585]
[1719314852242,117.67574492,138.11,138.1,0.86527585]
[1719314852561,117.67574492,138.11,138.09,6.496e-05]
[1719314852562,71.81464492,138.1,138.09,6.496e-05]
[1719314852761,107.2421,138.08,138.07,1.529e-05]
[1719314852927,164.12724492,138.08,138.07,1.529e-05]
[1719314853123,164.29724492,138.08,138.07,1.529e-05]
[1719314853550,125.3512,138.06,138.05,0.79729908]
[1719314853937,51.8012,138.06,138.05,0.79729908]
[1719314854296,7.2432,138.06,138.05,0.79729908]
[1719314854428,17.50834492,138.06,138.05,0.79729908]
[1719314855243,117.50834492,138.06,138.05,0.79729908]
[1719314855451,17.50834492,138.06,138.05,0.79729908]
[1719314855847,117.50834492,138.06,138.05,0.79729908]
[1719314856044,117.67834492,138.06,138.05,0.79729908]
[1719314856243,117.84834492,138.06,138.05,0.79729908]
[1719314858358,7.2432,138.06,138.05,0.79729908]
[1719314859241,7.2428,138.07,138.05,0.79729908]
[1719314859439,7.2432,138.06,138.05,0.79729908]
[1719314860950,36.71514492,138.09,138.05,0.79729908]
[1719314861135,100.0,138.15,138.05,0.79729908]
[1719314861333,7.2408,138.11,138.06,18.1074]
[1719314861643,7.2408,138.11,138.06,25.3502]
[1719314862082,7.2412,138.1,138.06,18.1074]
[1719314863351,7.2412,138.1,138.06,25.3505]
[1719314863554,7.2412,138.1,138.05,0.79729908]
[1719314863761,7.2412,138.1,138.05,8.04099908]
[1719314863939,7.2412,138.1,138.06,7.2431]
[1719314864141,7.2412,138.1,138.05,26.14979908]
[1719314864776,17.81847134,138.14,138.05,18.90619908]
[1719314864959,17.81847134,138.14,137.99,106.47307204]
[1719314865264,7.2407,138.11,138.0,41.75]
[1719314865462,7.2421,138.09,138.0,20.0]
[1719314866043,7.2421,138.09,138.04,7.2441]
[1719314866467,7.2413,138.1,138.05,7.2436]
[1719314866652,7.2413,138.1,138.06,7.2432]
[1719314866855,7.2417,138.09,138.05,7.2435]
[1719314867079,7.2412,138.1,138.05,7.2435]
[1719314867252,128.36684492,138.11,138.02,7.245]
[1719314867566,7.2423,138.08,138.04,7.2441]
[1719314867761,7.2418,138.09,138.04,7.2441]
[1719314868075,7.2411,138.1,138.06,7.243]
[1719314868453,17.50594492,138.11,138.06,7.243]
[1719314869180,7.55332642,138.14,138.07,0.17]
[1719314869473,7.2385,138.15,138.1,25.3437]
[1719314869883,100.0,138.18,138.07,0.34]
[1719314870051,100.0,138.18,138.12,25.3396]
[1719314870385,7.2383,138.16,138.11,22.0147]
[1719314870670,7.2376,138.17,138.12,7.2399]
[1719314871054,7.2376,138.17,138.13,18.0986]
[1719314871055,7.2375,138.17,138.13,18.0986]
[1719314872076,100.0,138.19,138.11,22.0148]
[1719314872371,7.238,138.16,138.11,22.0148]
[1719314872776,7.238,138.16,138.1,24.3728]
[1719314872777,126.45,138.17,138.1,18.1021]
[1719314873161,7.2395,138.14,138.1,18.1021]
[1719314873359,126.45,138.17,138.07,14.7743]
[1719314873561,7.2388,138.15,138.1,7.241]
[1719314873761,26.45,138.19,138.08,36.2088]
[1719314873983,7.2374,138.18,138.13,7.2394]
[1719314874302,6.6541,138.2,138.13,18.0986]
[1719314874467,7.2366,138.19,138.14,7.2389]
[1719314874678,7.2369,138.18,138.14,7.2389]
[1719314874874,18.0872,138.22,138.11,36.2009]
[1719314875081,7.2365,138.19,138.15,18.0961]
[1719314875379,7.2374,138.17,138.12,25.6788]
[1719314876480,18.0901,138.2,138.13,7.2394]
[1719314876693,7.237,138.18,138.13,7.2394]
[1719314877283,7.2376,138.17,138.13,7.2394]
[1719314878566,7.238,138.16,138.12,18.0992]
[1719314878761,7.2381,138.16,138.08,36.2088]
[1719314879061,100.0,138.19,138.07,14.7743]
[1719314879265,7.2392,138.14,138.07,14.7743]
[1719314879459,126.45,138.19,138.08,0.57030344]
[1719314879460,7.2386,138.15,138.08,0.57030344]
[1719314879667,144.5422,138.19,138.1,18.1026]
[1719314879668,7.2381,138.16,138.1,18.1026]
[1719314879879,7.2381,138.16,138.11,7.2403]
[1719314880082,7.2376,138.17,138.12,7.24]
[1719314880283,20.0,138.21,138.14,7.239]
[1719314880680,7.2363,138.2,138.16,7.2378]
[1719314880878,7.2355,138.21,138.16,25.3323]
[1719314881083,7.235,138.22,138.16,18.0948]
[1719314881474,7.2356,138.21,138.16,25.3325]
[1719314882100,140.2505,138.27,138.18,18.0919]
[1719314882276,7.2343,138.23,138.19,7.2363]
[1719314882466,7.2349,138.22,138.18,25.3286]
[1719314882666,22.1688,138.27,138.18,18.0919]
[1719314882894,7.2336,138.25,138.2,18.0895]
[1719314883700,7.2336,138.25,138.2,25.3253]
[1719314884395,7.2338,138.24,138.2,25.3253]
[1719314884564,7.2343,138.23,138.18,13.6744]
[1719314884769,7.2339,138.24,138.2,22.01]
[1719314885108,7.2344,138.23,138.18,13.6743]
[1719314885269,7.2343,138.23,138.18,13.6743]
[1719314885586,7.2343,138.23,138.19,7.2363]
[1719314885978,7.2339,138.24,138.2,7.2357]
[1719314886188,7.2339,138.24,138.18,24.5296]
[1719314886477,18.0809,138.27,138.18,24.5296]
[1719314887291,7.2334,138.25,138.21,7.2353]
[1719314887673,26.45,138.28,138.2,25.3252]
[1719314887878,7.2338,138.24,138.2,18.0894]
[1719314888090,7.2345,138.23,138.19,7.4064]
[1719314888292,7.2345,138.23,138.19,7.2364]
[1719314888491,7.2339,138.24,138.2,7.2357]
[1719314888807,7.2339,138.24,138.19,18.0905]
[1719314889399,7.2339,138.24,138.19,25.3267]
[1719314889706,7.2344,138.23,138.19,18.0905]
[1719314889904,7.2339,138.24,138.19,25.3268]
[1719314890108,44.5295,138.28,138.19,18.0905]
[1719314890394,7.2337,138.25,138.2,7.2358]
[1719314890602,7.2328,138.26,138.21,7.2349]
[1719314890801,7.2321,138.28,138.18,6.7777]
[1719314891006,7.2313,138.29,138.24,7.2337]
[1719314891502,7.2313,138.29,138.24,7.2336]
[1719314891705,7.2313,138.29,138.23,18.0855]
[1719314891885,15.5191,138.31,138.25,18.0829]
[1719314892207,15.5191,138.31,138.25,25.3158]
[1719314892401,7.2307,138.3,138.25,25.3159]
[1719314892991,7.2311,138.29,138.25,18.0829]
[1719314893391,7.2317,138.28,138.24,7.2336]
[1719314893605,7.2322,138.27,138.23,22.0084]
[1719314893797,118.0755,138.31,138.22,18.4259]
[1719314893798,100.0,138.29,138.22,18.0859]
[1719314893997,7.234,138.24,138.19,40.1005]
[1719314894182,7.2343,138.23,138.19,40.1005]
[1719314894590,7.2334,138.25,138.2,7.2357]
[1719314894792,7.2334,138.25,138.21,7.2352]
[1719314895403,7.2338,138.24,138.19,40.1002]
[1719314896330,18.082,138.26,138.18,7.2367]
[1719314896709,7.2346,138.23,138.18,7.2367]
[1719314897213,7.2346,138.23,138.19,7.2363]
[1719314898495,7.2346,138.23,138.18,18.092]
[1719314898496,100.0,138.25,138.18,18.092]
[1719314898706,7.2355,138.21,138.16,7.2374]
[1719314899623,7.235,138.22,138.17,7.2372]
[1719314900494,7.235,138.22,138.17,25.3307]
[1719314900725,7.235,138.22,138.18,7.2368]
[1719314900919,7.2346,138.23,138.17,18.0935]
[1719314901111,7.2346,138.23,138.18,7.2365]
[1719314901423,7.235,138.22,138.17,25.3307]
[1719314902822,7.2344,138.23,138.18,7.2368]
[1719314903023,7.2348,138.22,138.18,7.2368]
[1719314903414,18.0895,138.21,138.11,38.9423]
[1719314903725,18.0912,138.19,138.11,18.101]
[1719314903930,7.2385,138.15,138.1,7.2407]
[1719314904423,7.239,138.14,138.1,7.2407]
[1719314905025,7.239,138.14,138.09,7.2414]
[1719314905531,7.2386,138.15,138.1,7.2409]
[1719314907436,26.45,138.17,138.08,18.1047]
[1719314907606,44.5439,138.17,138.08,25.3464]